bitfinex/quotes_ETHUSD_20251214
["timestamp","ask_amount","ask_price","bid_price","bid_amount"]
[1765725161964,0.001,3074.8,3074.6,3.2524556]
[1765725162365,0.001,3074.8,3074.7,0.4784]
[1765725162899,0.001,3074.8,3074.7,0.9368]
[1765725163400,0.001,3074.8,3074.7,0.4784]
[1765725164501,0.001,3074.8,3074.7,3.73074982]
[1765725164727,0.001,3074.8,3074.7,4.18914982]
[1765725165809,0.001,3074.8,3074.7,3.73074982]
[1765725166000,0.001,3074.8,3074.7,4.18914982]
[1765725166297,0.001,3074.8,3074.7,3.73074982]
[1765725166505,0.001,3074.8,3074.7,4.18914982]
[1765725167903,0.001,3074.8,3074.7,4.59465382]
[1765725170719,0.001,3074.8,3074.7,3.73074982]
[1765725171287,0.2051,3074.8,3074.7,3.25234982]
[1765725171531,0.001,3074.8,3074.7,4.13625382]
[1765725171687,0.001,3074.8,3074.7,4.59465382]
[1765725175799,0.001,3074.8,3074.7,5.17512911]
[1765725180815,0.001,3074.8,3074.7,4.71672911]
[1765725181021,0.001,3074.8,3074.7,5.20042911]
[1765725181216,0.001,3074.8,3074.7,5.71842911]
[1765725183109,0.001,3074.8,3074.7,5.23472911]
[1765725183450,0.001,3074.8,3074.7,5.71842911]
[1765725185550,0.04828809,3075.6,3075.0,0.405504]
[1765725185746,0.09628809,3075.8,3075.2,0.4966]
[1765725186333,0.1773,3075.3,3075.0,0.405504]
[1765725186637,0.0018,3075.2,3075.0,0.405504]
[1765725188123,0.4834,3075.1,3074.4,0.002]
[1765725188325,0.4834,3075.5,3075.0,3.25203252]
[1765725188530,0.09628809,3075.4,3075.0,7.00066504]
[1765725188847,0.4834,3075.8,3075.1,0.405504]
[1765725189154,0.001,3076.1,3075.7,0.4966]
[1765725189351,0.001,3076.1,3075.8,0.4966]
[1765725190033,0.001,3076.1,3075.9,3.25108098]
[1765725190747,0.001,3076.1,3076.0,0.4966]
[1765725190948,0.001,3076.1,3076.0,0.9803]
[1765725191543,0.001,3076.1,3076.0,1.385804]
[1765725192241,0.001,3076.1,3076.0,4.63677929]
[1765725195540,0.001,3076.1,3076.0,4.15307929]
[1765725195719,0.001,3076.1,3076.0,4.67007929]
[1765725200821,0.1704,3076.1,3076.0,3.65647929]
[1765725202550,0.1704,3076.1,3076.0,3.25097529]
[1765725203149,0.6507,3076.1,3076.0,3.25097529]
[1765725203335,0.1704,3076.1,3076.0,3.25097529]
[1765725205656,0.001,3076.1,3076.0,4.23127529]
[1765725206038,0.001,3076.1,3076.0,3.74757529]
[1765725206559,0.001,3076.1,3076.0,4.62727929]
[1765725206946,0.198,3076.1,3076.0,3.65647929]
[1765725207129,0.001,3076.1,3076.0,4.63657929]
[1765725208363,0.001,3076.1,3076.0,5.11227929]
[1765725209638,0.001,3076.1,3076.0,4.17347929]
[1765725209846,0.001,3076.1,3076.0,9.44447427]
[1765725210848,0.001,3076.1,3076.0,9.92017427]
[1765725212873,0.001,3076.1,3076.0,4.63657929]
[1765725213445,0.001,3076.1,3076.0,9.44447427]
[1765725213846,0.001,3076.1,3076.0,9.92017427]
[1765725214970,0.001,3076.1,3076.0,4.11957929]
[1765725215273,0.001,3076.1,3076.0,9.91917427]
[1765725216586,0.001,3076.1,3076.0,45.30754454]
[1765725216869,0.001,3076.1,3076.0,40.49964956]
[1765725218278,0.001,3076.1,3076.0,40.50064956]
[1765725219703,0.001,3076.1,3076.0,45.30854454]
[1765725222079,0.001,3076.1,3076.0,40.50064956]
[1765725222284,0.001,3076.1,3076.0,45.30854454]
[1765725222492,0.001,3076.1,3076.0,15.30854454]
[1765725222657,0.001,3076.1,3076.0,45.30854454]
[1765725223358,0.001,3076.1,3076.0,45.30422422]
[1765725224105,0.001,3076.1,3076.0,49.13422422]
[1765725225689,0.001,3076.5,3076.0,49.13422422]
[1765725225690,0.001,3076.5,3076.1,4.41297929]
[1765725225903,0.001,3076.5,3076.4,41.25904893]
[1765725226062,0.001,3076.5,3076.4,45.60504893]
[1765725226264,0.001,3076.5,3076.4,46.08074893]
[1765725227492,0.001,3076.5,3076.4,45.56474893]
[1765725227674,0.001,3076.5,3076.4,49.33130152]
[1765725228591,0.001,3076.5,3076.4,24.8463627]
[1765725228762,0.001,3076.5,3076.4,24.2083627]
[1765725228960,0.001,3076.5,3076.4,29.23130152]
[1765725229694,0.001,3076.5,3076.4,48.72230152]
[1765725230099,0.001,3076.5,3076.4,44.89230152]
[1765725230691,0.001,3076.5,3076.4,33.66430152]
[1765725231086,0.001,3076.5,3076.4,9.16013188]
[1765725231261,0.001,3076.5,3076.4,10.0213667]
[1765725231663,0.7451,3076.5,3076.4,3.25055259]
[1765725231881,0.4769,3076.5,3076.4,3.76655259]
[1765725232074,0.4769,3076.5,3076.4,9.5582667]
[1765725232762,0.7451,3076.5,3076.4,9.5582667]
[1765725234071,0.4769,3076.5,3076.4,9.5582667]
[1765725234595,0.001,3076.5,3076.4,40.4970667]
[1765725234765,0.001,3076.5,3076.4,45.30280152]
[1765725239198,0.001,3076.5,3076.4,45.73778137]
[1765725239400,0.001,3076.5,3076.4,45.73570411]
[1765725239608,0.001,3076.5,3076.4,45.30072426]
[1765725243211,0.001,3076.5,3076.4,48.72772426]
[1765725243395,0.001,3076.5,3076.4,45.30072426]
[1765725247235,0.001,3076.5,3076.4,43.84592426]
[1765725247519,0.001,3076.5,3076.4,11.52643188]
[1765725247900,0.001,3076.5,3076.4,35.23743188]
[1765725248304,0.001,3076.5,3076.4,28.00143188]
[1765725248505,0.001,3076.5,3076.4,26.00243188]
[1765725249022,0.2883,3076.5,3076.4,29.31853188]
[1765725249224,0.2883,3076.5,3076.4,29.83453188]
[1765725249615,0.001,3076.5,3076.4,29.83453188]
[1765725249921,0.001,3076.5,3076.4,34.75253188]
[1765725250122,0.001,3076.5,3076.4,35.23743188]
[1765725250621,0.001,3076.5,3076.4,31.79143188]
[1765725250823,0.001,3076.5,3076.4,23.36443188]
[1765725251126,0.001,3076.5,3076.4,35.23743188]
[1765725251921,0.001,3076.5,3076.4,26.22343188]
[1765725252120,0.2883,3076.5,3076.4,18.77053188]
[1765725252819,0.001,3076.5,3076.4,19.25543188]
[1765725253022,0.001,3076.5,3076.4,35.70113188]
[1765725254121,0.4574,3076.5,3076.4,17.98953188]
[1765725254321,0.4574,3076.5,3076.4,17.24353188]
[1765725254823,0.7449,3076.5,3076.4,3.76655259]
[1765725255032,0.7449,3076.5,3076.4,4.75253188]
[1765725256197,0.001,3076.5,3076.4,35.23743188]
[1765725256513,0.2883,3076.5,3076.4,26.30353188]
[1765725256714,0.7432,3076.5,3076.4,26.25553188]
[1765725257319,0.7432,3076.5,3076.4,26.58353188]
[1765725257846,0.2883,3076.5,3076.4,26.58353188]
[1765725258357,0.2883,3076.5,3076.4,34.75253188]
[1765725258994,0.7432,3076.5,3076.4,4.75253188]
[1765725259199,0.7432,3076.5,3076.4,4.23653188]
[1765725259401,0.7432,3076.5,3076.4,4.75253188]
[1765725260407,0.7432,3076.5,3076.4,4.17205659]
[1765725260818,0.7432,3076.5,3076.3,3.25062798]
[1765725261131,0.7432,3076.5,3076.1,3.25084267]
[1765725261132,0.2873,3076.2,3076.1,0.405504]
[1765725261342,0.2873,3076.2,3076.1,0.921504]
[1765725261497,0.7422,3076.2,3076.1,0.921504]
[1765725261917,0.7422,3076.2,3076.1,0.405504]
[1765725262115,0.7422,3076.2,3076.1,0.921504]
[1765725263741,0.7422,3076.2,3076.1,4.75284889]
[1765725264103,0.2873,3076.2,3076.1,4.75284889]
[1765725264303,0.7422,3076.2,3076.1,4.23684889]
[1765725264506,0.7422,3076.2,3076.1,4.75284889]
[1765725267037,0.001,3076.5,3076.1,46.53258637]
[1765725267204,0.001,3076.5,3076.1,16.53258637]
[1765725267409,0.001,3076.5,3076.3,0.405504]
[1765725268233,0.001,3076.5,3076.4,0.98597929]
[1765725269105,0.282,3076.5,3076.4,0.98597929]
[1765725270433,0.001,3076.5,3076.4,39.97573016]
[1765725271132,0.001,3076.5,3076.4,39.51453016]
[1765725271528,0.001,3076.5,3076.4,39.97573016]
[1765725271908,0.001,3076.5,3076.4,44.78342844]
[1765725272110,0.001,3076.5,3076.4,39.97573016]
[1765725272303,0.001,3076.5,3076.4,39.51453016]
[1765725272503,0.001,3076.5,3076.4,40.49173016]
[1765725272711,0.001,3076.5,3076.4,45.29942844]
[1765725273625,0.001,3076.5,3076.4,49.12942844]
[1765725274026,0.001,3076.6,3076.5,0.405504]
[1765725274227,0.001,3076.6,3076.5,31.91747929]
[1765725274537,0.001,3076.6,3076.5,38.99792622]
[1765725275236,0.001,3077.3,3076.6,0.58047529]
[1765725275537,0.001,3077.3,3077.2,41.23967585]
[1765725275731,0.001,3077.3,3077.2,41.75567585]
[1765725275934,0.001,3077.3,3077.2,42.21687585]
[1765725276134,0.001,3077.3,3077.2,41.58767585]
[1765725276326,0.001,3077.3,3077.2,42.04887585]
[1765725276638,0.001,3077.3,3077.2,15.29858337]
[1765725276837,0.001,3077.3,3077.2,45.29858337]
[1765725278641,0.001,3077.3,3077.2,15.29858337]
[1765725278848,0.001,3077.3,3077.2,45.29858337]
[1765725279617,0.001,3077.3,3077.2,15.29858337]
[1765725279823,0.001,3077.3,3077.2,45.29858337]
[1765725280556,0.001,3077.3,3077.2,49.12858337]
[1765725281252,0.001,3077.3,3077.2,48.66738337]
[1765725284464,0.001,3077.3,3077.2,43.38938509]
[1765725284465,0.4726,3077.3,3077.2,43.38938509]
[1765725284876,0.001,3077.3,3077.2,43.38938509]
[1765725285027,0.001,3077.3,3077.2,43.85968509]
[1765725285738,0.001,3077.3,3077.2,43.34368509]
[1765725285945,0.001,3077.3,3077.2,43.85968509]
[1765725286540,0.001,3077.3,3077.2,40.02968509]
[1765725287026,0.001,3077.3,3077.2,11.96338509]
[1765725287027,0.4696,3077.3,3077.2,11.96338509]
[1765725287245,0.6484,3077.3,3077.2,12.47938509]
[1765725287769,0.4696,3077.3,3077.2,12.47938509]
[1765725290530,0.001,3077.3,3077.2,12.47938509]
[1765725290729,0.001,3077.3,3077.2,12.94968509]
[1765725291060,0.4668,3077.3,3077.2,31.97538509]
[1765725291234,0.6485,3077.3,3077.2,18.66438509]
[1765725291929,0.6485,3077.3,3077.2,9.55938509]
[1765725292853,0.6485,3077.3,3077.2,3.83018281]
[1765725293056,0.6485,3077.3,3077.2,4.34618281]
[1765725293356,0.6485,3077.3,3077.2,4.23568681]
[1765725293658,0.6485,3077.3,3077.2,3.76570752]
[1765725294033,0.6485,3077.3,3077.2,4.17121152]
[1765725294938,0.6485,3077.3,3076.8,3.25011421]
[1765725295142,0.6571,3076.9,3076.8,3.25013]
[1765725295548,0.833,3076.9,3076.8,3.25013]
[1765725295998,0.833,3076.9,3076.7,3.76619924]
[1765725296180,0.6477,3076.8,3076.7,0.516]
[1765725296375,0.6477,3076.8,3076.5,0.002]
[1765725296579,0.0016,3076.6,3076.5,0.002]
[1765725297182,0.4906,3076.6,3076.5,0.002]
[1765725297467,0.86467685,3076.6,3076.5,0.002]
[1765725299953,5.67468851,3076.6,3076.5,0.002]
[1765725300464,0.86467685,3076.6,3076.5,0.002]
[1765725300673,0.4906,3076.6,3076.5,0.002]
[1765725301166,5.30061166,3076.6,3076.5,0.002]
[1765725301538,8.55095294,3076.6,3076.5,0.002]
[1765725302243,5.30061166,3076.6,3076.5,0.002]
[1765725302440,6.4898204,3076.6,3076.5,0.002]
[1765725302672,0.4906,3076.6,3076.5,0.002]
[1765725306055,8.64197877,3076.6,3076.5,0.002]
[1765725306375,9.61808848,3076.6,3076.5,0.002]
[1765725306946,4.80807682,3076.6,3076.5,0.002]
[1765725307282,0.4906,3076.6,3076.5,0.002]
[1765725307487,0.0016,3076.6,3076.5,0.002]
[1765725309464,0.4906,3076.6,3076.5,0.002]
[1765725309764,1.34567472,3076.6,3076.5,0.002]
[1765725309960,6.15568638,3076.6,3076.5,0.002]
[1765725311257,4.596016,3076.6,3076.5,0.002]
[1765725311971,9.40602766,3076.6,3076.5,0.002]
[1765725312349,10.38216595,3076.6,3076.5,0.002]
[1765725312550,5.57215429,3076.6,3076.5,0.002]
[1765725312847,5.57315429,3076.6,3076.5,0.002]
[1765725313368,10.38316595,3076.6,3076.5,0.002]
[1765725313944,10.89916595,3076.6,3076.5,0.002]
[1765725317151,15.70917761,3076.6,3076.5,0.002]
[1765725317553,16.2896529,3076.6,3076.5,0.002]
[1765725319156,6.15362958,3076.6,3076.5,0.002]
[1765725319360,11.47964124,3076.6,3076.5,0.002]
[1765725319573,16.2896529,3076.6,3076.5,0.002]
[1765725326033,0.58047529,3076.5,3076.0,0.002]
[1765725326201,10.44862444,3076.1,3076.0,0.002]
[1765725326398,10.96462444,3076.1,3076.0,0.002]
[1765725326599,11.55901137,3076.1,3076.0,0.002]
[1765725328604,14.80988097,3076.1,3076.0,0.002]
[1765725330383,8.92864348,3076.1,3076.0,0.002]
[1765725330799,10.07709957,3076.1,3076.0,0.002]
[1765725330999,11.02799957,3076.1,3076.0,0.002]
[1765725331410,11.05729957,3076.1,3076.0,0.002]
[1765725331812,11.06005092,3076.1,3076.0,0.002]
[1765725333492,15.87281393,3076.1,3076.0,0.002]
[1765725333701,16.00298815,3076.1,3076.0,0.002]
[1765725333902,11.19022514,3076.1,3076.0,0.002]
[1765725334098,16.00298815,3076.1,3076.0,0.002]
[1765725339797,5.998,3076.0,3075.5,0.002]
[1765725339997,5.70426413,3075.6,3075.5,0.002]
[1765725340209,6.2609066,3075.6,3075.5,0.002]
[1765725340409,6.85529988,3075.6,3075.5,0.002]
[1765725340598,6.81465741,3075.6,3075.5,0.002]
[1765725341332,0.13019328,3075.6,3075.5,0.4704]
[1765725341625,0.58047529,3075.8,3075.5,0.9571]
[1765725341827,6.4867,3076.0,3075.8,0.4684]
[1765725342030,5.998,3076.0,3075.9,0.4684]
[1765725342201,5.998,3076.0,3075.9,1.86160399]
[1765725342401,4.998,3076.0,3075.9,1.86160399]
[1765725342604,4.8714,3076.0,3075.9,1.86160399]
[1765725342937,4.8714,3076.0,3075.9,2.37760399]
[1765725343336,4.8714,3076.0,3075.9,1.876604]
[1765725343632,4.8714,3076.0,3075.9,6.68936701]
[1765725344203,4.8714,3076.0,3075.9,10.52092328]
[1765725344803,4.8714,3076.0,3075.9,5.19216027]
[1765725345000,4.8714,3076.0,3075.9,4.61168498]
[1765725346330,4.8714,3076.0,3075.9,35.19216027]
[1765725347217,4.8714,3076.0,3075.9,34.42416027]
[1765725347434,4.8714,3076.0,3075.9,28.09216027]
[1765725348139,4.8714,3076.0,3075.9,29.06783507]
[1765725348443,4.8714,3076.0,3075.9,42.5981211]
[1765725349331,4.8714,3076.0,3075.9,12.5981211]
[1765725349638,4.8714,3076.0,3075.9,42.5981211]
[1765725349941,0.001,3076.6,3075.9,52.35336404]
[1765725350228,0.001,3076.6,3076.5,0.98597929]
[1765725350432,0.001,3076.6,3076.5,1.50197929]
[1765725350635,0.001,3076.6,3076.5,31.50197929]
[1765725352235,0.001,3076.6,3076.5,34.75242622]
[1765725352442,0.001,3076.6,3076.5,34.88248912]
[1765725353706,0.001,3076.6,3076.5,4.88248912]
[1765725353939,0.001,3076.6,3076.5,34.88248912]
[1765725357821,0.001,3076.6,3076.5,42.13948912]
[1765725358258,0.001,3076.6,3076.5,41.62348912]
[1765725358417,0.001,3076.6,3076.5,42.13948912]
[1765725358618,0.001,3076.6,3076.5,41.62348912]
[1765725358922,0.001,3076.6,3076.5,42.13948912]
[1765725359952,0.001,3076.6,3076.5,38.19648912]
[1765725360163,0.001,3076.6,3076.5,38.71248912]
[1765725361361,0.001,3077.3,3077.0,0.98597929]
[1765725361524,0.001,3077.3,3077.2,47.7023792]
[1765725361722,0.001,3077.3,3077.2,37.7023792]
[1765725362251,0.001,3077.3,3077.2,37.832407]
[1765725362625,0.001,3077.3,3077.2,31.50197929]
[1765725362828,0.001,3077.3,3077.2,34.75168681]
[1765725363028,0.001,3077.3,3077.2,28.25868681]
[1765725363334,0.001,3077.3,3077.2,28.77468681]
[1765725363742,0.001,3077.3,3077.2,27.31318281]
[1765725364048,0.001,3077.3,3077.2,4.34618281]
[1765725364250,0.001,3077.3,3077.2,28.14268681]
[1765725364546,0.001,3077.3,3077.2,23.60868681]
[1765725364733,0.001,3077.3,3077.2,4.75168681]
[1765725365259,0.9787,3077.3,3077.2,0.516]
[1765725365445,0.9787,3077.3,3077.2,3.76570752]
[1765725365754,0.9787,3077.3,3077.2,8.57155769]
[1765725365755,0.001,3077.3,3077.2,8.57155769]
[1765725366052,0.001,3077.3,3077.2,9.55753698]
[1765725366431,0.001,3077.3,3077.2,4.75168681]
[1765725367022,0.001,3077.3,3077.2,9.55544404]
[1765725368731,0.001,3077.3,3077.2,3.76570752]
[1765725368732,0.4933,3077.3,3077.2,3.76570752]
[1765725369325,0.4933,3077.3,3077.2,4.17121152]
[1765725369554,0.9787,3077.3,3077.2,3.65521152]
[1765725369761,0.001,3077.3,3077.2,4.17121152]
[1765725369968,0.9787,3077.3,3077.2,4.17121152]
[1765725370654,0.9787,3077.3,3077.2,3.65521152]
[1765725370834,0.9787,3077.3,3077.2,4.17121152]
[1765725372630,0.9787,3077.3,3077.2,3.65521152]
[1765725372833,0.9787,3077.3,3077.2,4.17121152]
[1765725373055,0.9787,3077.3,3077.2,3.24970752]
[1765725373258,0.9787,3077.3,3077.2,3.76570752]
[1765725375863,0.001,3077.3,3077.2,4.17121152]
[1765725377752,0.001,3077.3,3077.2,44.17121152]
[1765725377952,0.001,3077.3,3077.2,34.17121152]
[1765725379247,0.001,3077.3,3077.2,26.33521152]
[1765725380169,0.001,3077.3,3077.2,13.88921152]
[1765725380462,0.001,3077.3,3077.2,4.17121152]
[1765725381168,0.001,3077.3,3077.2,3.65521152]
[1765725381364,0.001,3077.3,3077.2,4.17121152]
[1765725383765,0.4933,3077.3,3077.2,4.17121152]
[1765725384279,0.001,3077.3,3077.2,4.17121152]
[1765725384656,0.001,3077.3,3077.2,3.65521152]
[1765725384860,0.001,3077.3,3077.2,4.17121152]
[1765725385480,0.4933,3077.3,3077.2,3.65521152]
[1765725385643,0.001,3077.3,3077.2,4.17121152]
[1765725387879,2.59878848,3077.2,3077.1,17.6502884]
[1765725388180,2.59878848,3077.2,3077.1,18.1662884]
[1765725388547,2.59878848,3077.2,3077.1,12.9122884]
[1765725388774,3.05908848,3077.2,3077.1,3.8302884]
[1765725388969,3.05908848,3077.2,3077.1,4.3462884]
[1765725389777,3.05908848,3077.2,3077.1,4.7517924]
[1765725389978,3.52758848,3077.2,3077.1,4.2357924]
[1765725390168,2.59878848,3077.2,3077.1,4.7517924]
[1765725390370,3.08998848,3077.2,3077.1,4.2357924]
[1765725390570,3.08998848,3077.2,3077.1,4.7517924]
[1765725391179,3.55848848,3077.2,3077.1,4.7517924]
[1765725391381,3.08998848,3077.2,3077.1,4.7517924]
[1765725391550,2.59878848,3077.2,3077.1,4.7517924]
[1765725391876,3.55848848,3077.2,3077.1,4.7517924]
[1765725396483,3.91453733,3077.2,3077.1,0.516]
[1765725396688,3.91453733,3077.2,3077.1,3.76581313]
[1765725396888,3.91453733,3077.2,3077.1,3.24981313]
[1765725397888,3.91453733,3077.2,3077.0,0.405504]
[1765725398066,0.4685,3077.1,3077.0,3.65542275]
[1765725398263,0.9597,3077.1,3077.0,3.65542275]
[1765725402578,0.9597,3077.1,3076.8,0.405504]
[1765725402886,2.59878848,3077.2,3077.0,3.24991875]
[1765725403291,0.9597,3077.1,3077.0,0.405504]
[1765725405467,0.9597,3077.1,3077.0,3.65742275]
[1765725411697,0.4912,3077.1,3077.0,3.65742275]
[1765725411883,0.9597,3077.1,3077.0,3.65742275]
[1765725412392,0.4912,3077.1,3077.0,3.65742275]
[1765725412994,0.9597,3077.1,3077.0,3.65742275]
[1765725414395,0.4912,3077.1,3077.0,3.65742275]
[1765725414800,0.9597,3077.1,3077.0,3.65742275]
[1765725417702,0.4912,3077.1,3077.0,3.65742275]
[1765725417903,2.59978848,3077.2,3077.0,3.65742275]
[1765725418196,0.4832,3077.1,3077.0,3.65742275]
[1765725418367,0.9736,3077.1,3077.0,3.65742275]
[1765725421106,0.4832,3077.1,3077.0,3.65742275]
[1765725421288,2.59978848,3077.2,3077.1,0.405504]
[1765725421505,2.59978848,3077.2,3077.1,4.17131713]
[1765725422597,2.59978848,3077.2,3077.1,39.55743105]
[1765725422967,2.59978848,3077.2,3077.1,44.36306968]
[1765725424801,0.001,3077.3,3077.2,40.98597929]
[1765725425003,0.001,3077.3,3077.2,35.20088804]
[1765725425303,0.001,3077.3,3077.2,35.42297928]
[1765725425500,0.001,3077.3,3077.2,36.06629002]
[1765725425800,0.001,3077.3,3077.2,6.06629002]
[1765725426099,0.001,3077.3,3077.2,36.86019877]
[1765725426279,0.001,3077.3,3077.2,36.47376987]
[1765725426685,0.001,3077.3,3077.2,36.06629002]
[1765725426906,0.001,3077.3,3077.2,9.31599754]
[1765725427072,0.001,3077.3,3077.2,38.80099754]
[1765725427278,0.001,3077.3,3077.2,39.31599754]
[1765725428101,0.001,3077.3,3077.2,38.6726868]
[1765725428416,0.001,3077.3,3077.2,38.28769812]
[1765725428714,0.001,3077.3,3077.2,38.80269812]
[1765725428916,0.001,3077.3,3077.2,8.28769812]
[1765725429214,0.001,3077.3,3077.2,39.44561882]
[1765725430207,0.001,3077.3,3077.2,39.85309867]
[1765725431193,0.001,3077.3,3077.2,34.86669812]
[1765725431404,0.001,3077.3,3077.2,35.38169812]
[1765725431997,0.001,3077.3,3077.2,4.86669812]
[1765725432203,0.001,3077.3,3077.2,44.99297538]
[1765725432422,0.001,3077.3,3077.2,44.47797538]
[1765725432623,0.001,3077.3,3077.2,44.99297538]
[1765725432826,0.001,3077.3,3077.2,38.68635746]
[1765725433014,0.4842,3077.3,3077.2,3.76470752]
[1765725433190,0.9746,3077.3,3077.2,3.24970752]
[1765725433390,0.9746,3077.3,3077.2,3.76470752]
[1765725433921,0.9746,3077.3,3077.2,3.24970752]
[1765725434126,0.9746,3077.3,3077.2,4.34518281]
[1765725434599,0.9746,3077.3,3077.2,4.75068681]
[1765725435024,0.9746,3077.3,3077.0,0.002]
[1765725435314,0.4832,3077.1,3077.0,0.002]
[1765725435528,0.4832,3077.1,3077.0,0.922504]
[1765725435729,0.9736,3077.1,3077.0,0.517]
[1765725436120,0.9736,3077.1,3077.0,0.922504]
[1765725437214,0.9736,3077.1,3077.0,4.17242275]
[1765725439690,0.9736,3077.1,3077.0,3.65742275]
[1765725445409,0.9736,3077.1,3077.0,0.407504]
[1765725445605,0.9736,3077.1,3077.0,3.65742275]
[1765725445823,0.9736,3077.1,3077.0,0.407504]
[1765725448027,0.9736,3077.1,3077.0,3.65742275]
[1765725450906,0.9736,3077.1,3077.0,0.407504]
[1765725452833,0.9736,3077.1,3077.0,0.002]
[1765725453033,1.55182638,3077.1,3077.0,0.002]
[1765725453838,6.35849019,3077.1,3077.0,0.002]
[1765725454236,1.55182638,3077.1,3077.0,0.002]
[1765725454420,0.9736,3077.1,3077.0,0.002]
[1765725458109,0.001,3077.2,3077.0,0.517]
[1765725458510,0.001,3077.2,3077.1,3.24981313]
[1765725459242,0.001,3077.2,3077.1,39.04245623]
[1765725459443,0.001,3077.2,3077.1,47.27012004]
[1765725459741,0.001,3077.9,3077.6,0.405504]
[1765725459942,0.001,3077.9,3077.7,36.3076431]
[1765725460320,0.001,3077.9,3077.7,18.7286431]
[1765725460520,0.001,3077.9,3077.7,21.97782268]
[1765725460723,0.001,3077.9,3077.7,11.39982268]
[1765725460948,0.001,3077.9,3077.7,34.75015887]
[1765725461187,0.001,3077.9,3077.7,4.23515887]
[1765725461314,0.001,3077.9,3077.7,4.75015887]
[1765725463619,0.001,3077.9,3077.7,34.75015887]
[1765725464815,0.001,3077.9,3077.7,4.23515887]
[1765725465037,0.001,3077.9,3077.7,4.75015887]
[1765725465652,0.001,3077.9,3077.7,34.75015887]
[1765725467470,0.001,3077.9,3077.7,4.75015887]
[1765725467679,0.001,3077.9,3077.7,4.23515887]
[1765725467834,0.001,3077.9,3077.7,4.75015887]
[1765725470369,0.4706,3077.8,3077.7,4.23515887]
[1765725470675,0.9501,3077.8,3077.4,3.24944844]
[1765725470970,0.4696,3077.5,3077.3,3.24960192]
[1765725471207,0.9491,3077.4,3077.3,3.65510592]
[1765725471874,0.9491,3077.4,3077.3,3.24960192]
[1765725472273,0.9491,3077.4,3077.3,3.65510592]
[1765725472488,0.9491,3077.4,3077.2,3.24961416]
[1765725472694,0.9491,3077.3,3077.0,0.002]
[1765725473002,0.4696,3077.1,3076.0,0.002]
[1765725473295,0.6548,3076.6,3076.3,3.25062325]
[1765725473656,1.1343,3076.6,3076.3,3.25062325]
[1765725474590,1.1343,3076.6,3076.2,3.83123921]
[1765725474789,1.1343,3076.6,3076.2,7.08200313]
[1765725475291,1.1343,3076.6,3076.0,0.002]
[1765725475292,4.38464128,3076.6,3076.0,0.002]
[1765725475491,6.17639914,3076.6,3076.0,0.002]
[1765725475667,0.4696,3076.1,3075.9,0.002]
[1765725475989,0.56062583,3076.0,3075.5,0.002]
[1765725476172,0.6783,3075.8,3075.5,0.002]
[1765725476561,1.1463,3075.8,3075.5,0.002]
[1765725477879,1.59513064,3075.8,3075.5,0.002]
[1765725478185,1.1463,3075.8,3075.5,0.002]
[1765725479257,0.6783,3075.8,3075.5,0.002]
[1765725479457,1.1463,3075.8,3075.5,0.002]
[1765725481181,0.6783,3075.8,3075.5,0.002]
[1765725481361,0.983,3076.2,3075.5,0.002]
[1765725481568,0.4945,3075.8,3075.6,0.002]
[1765725482071,0.468,3076.1,3075.6,0.407504]
[1765725482272,0.79122583,3076.6,3075.6,0.407504]
[1765725482472,0.468,3076.3,3075.6,0.407504]
[1765725482873,0.468,3076.3,3075.7,6.50458476]
[1765725483770,0.6783,3075.8,3075.7,3.25329238]
[1765725483975,0.6783,3075.8,3075.7,3.76829238]
[1765725484160,1.1463,3075.8,3075.7,3.76829238]
[1765725484382,0.4945,3075.8,3075.7,3.76829238]
[1765725484769,0.468,3076.1,3075.7,7.02798476]
[1765725485382,0.468,3076.1,3075.7,3.77669238]
[1765725485591,0.468,3076.1,3075.7,3.76829238]
[1765725485796,0.468,3076.1,3075.7,7.01958476]
[1765725486669,0.4945,3075.8,3075.7,3.25329238]
[1765725486870,0.468,3076.1,3075.7,6.50458476]
[1765725487070,0.468,3076.1,3075.7,6.51298476]
[1765725487902,0.468,3076.1,3075.7,3.26169238]
[1765725488071,0.468,3076.1,3075.7,3.25329238]
[1765725488804,0.468,3076.1,3075.7,6.50458476]
[1765725489702,0.468,3076.4,3076.0,0.0084]
[1765725490277,0.468,3076.4,3075.8,0.363904]
[1765725491095,0.4945,3075.9,3075.7,6.50458476]
[1765725491400,0.6783,3075.8,3075.7,3.25329238]
[1765725491702,0.6783,3075.8,3075.7,0.002]
[1765725491889,1.1463,3075.8,3075.7,0.002]
[1765725493904,4.39748668,3075.8,3075.7,0.002]
[1765725494075,1.58604867,3075.8,3075.7,0.002]
[1765725494274,1.1463,3075.8,3075.7,0.002]
[1765725496115,0.469,3076.1,3075.7,0.002]
[1765725496315,0.4945,3075.8,3075.7,0.002]
[1765725496820,0.9625,3075.8,3075.7,0.002]
[1765725498086,0.4945,3075.8,3075.7,0.002]
[1765725499207,0.9625,3075.8,3075.7,0.002]
[1765725500020,4.21368668,3075.8,3075.6,0.002]
[1765725500191,2.01837708,3075.7,3075.5,0.002]
[1765725500534,0.4945,3075.6,3075.5,0.002]
[1765725500730,0.4945,3075.4,3075.0,0.002]
[1765725500925,1.0105,3075.3,3075.0,0.002]
[1765725501289,1.4785,3075.3,3075.0,0.002]
[1765725501904,4.73021527,3075.3,3075.0,0.002]
[1765725502105,5.53749321,3075.3,3075.0,0.002]
[1765725504218,6.1179685,3075.3,3075.0,0.002]
[1765725507838,12.85579571,3075.3,3075.0,0.002]
[1765725508815,12.85579571,3075.3,3075.1,0.002]
[1765725509014,12.85679571,3075.3,3075.1,0.002]